Cogmind - Beta 11.1 @@@ ROGUE MODE // 2022.09.15 @ 19:46:12 Player: ILikeMonsters1890 Result: Destroyed by Enhanced Grunt with Neutron Cannon Performance ------------- Evolutions (3) 1500 Regions Visited (7) 1400 Robots Destroyed (55) 275 Value Destroyed (1487) 1487 Prototype IDs (217) 4340 Alien Tech Used (0) 0 Bonus (3335) 3335 TOTAL SCORE: 12337 Bonus ------- High Alert Combat Kills 15 Follower Combat Kills 20 Met Data Miner 300 Used Data Conduit 3000 Cogmind --------- Core Integrity 0/700 Matter 300/300 Energy 100/100 System Corruption 16% Temperature Cool (0) Movement Flying (100) Ox1 Location -7/Data Miner Parts ------- > --- POWER (2) -------- (None) > --- PROPULSION (4) --- Cooled VTOL Module > --- UTILITY (5) ------ Signal Interpreter Target Analyzer Deep Network Scanner > --- WEAPON (2) ------- Powered Hammer Powered Hammer > --- INVENTORY (5) ---- Medium Storage Unit Advanced Assault Cannon Grenade Launcher Tearclaws Peak State ------------ > --- POWER ------------ Improved Deuterium Engine > --- PROPULSION ------- Cesium-ion Thruster Cesium-ion Thruster Cooled VTOL Module > --- UTILITY ---------- Small Storage Unit Signal Interpreter Target Analyzer Improved Medium Armor Plating Deep Network Scanner > --- WEAPON ----------- Powered Hammer Powered Hammer > --- INVENTORY -------- Coolant Injector Medium Storage Unit Quantum Router Advanced Assault Cannon Grenade Launcher Tearclaws [Rating: 45] Favorites ----------- Power Ion Engine Engine Ion Engine Power Core Light Nuclear Core Propulsion Wheel Treads Improved Treads Wheel Wheel Hover Unit Aerolev Unit Flight Unit Cesium-ion Thruster Utility Signal Interpreter Device Improved Sensor Array Storage Small Storage Unit Processor Signal Interpreter Hackware Deep Network Scanner Protection Improved Medium Armor Plating Weapon Powered Hammer Ballistic Gun Assault Rifle Launcher Rocket Array Impact Weapon Powered Hammer Slashing Weapon Katana Build | -11 -10 -9 -8 -7 -7 -7 -7 ------- Run | Scr Mat Mat Mat Fac Low Low Dat Slots Evolved 6 | . . 2 2 2 . . . Power 1 | . . . . 1 . . . Propulsion 2 | . . 1 . 1 . . . Utility 3 | . . 1 2 . . . . Weapon . | . . . . . . . . Parts Attached 66 | 8 2 9 25 8 11 2 1 Power 9 | 1 . 3 2 2 . 1 . Engine 6 | 1 . 3 . 1 . 1 . Core 3 | . . . 2 1 . . . Reactor . | . . . . . . . . Propulsion 23 | 3 1 4 8 2 5 . . Treads 1 | . . . . . 1 . . Leg . | . . . . . . . . Wheel 9 | 3 1 3 2 . . . . Hover 1 | . . . 1 . . . . Flight 12 | . . 1 5 2 4 . . Utility 20 | 2 1 2 8 2 4 . 1 Device 6 | 1 . 1 2 . 2 . . Storage 5 | 1 1 . 2 1 . . . Processor 3 | . . 1 1 1 . . . Hackware 1 | . . . . . . . 1 Protection 5 | . . . 3 . 2 . . Artifact . | . . . . . . . . Weapon 14 | 2 . . 7 2 2 1 . Energy Gun . | . . . . . . . . Energy Cannon . | . . . . . . . . Ballistic Gun 5 | 2 . . 3 . . . . Ballistic Cannon . | . . . . . . . . Launcher 1 | . . . . 1 . . . Special Weapon . | . . . . . . . . Impact Weapon 7 | . . . 3 1 2 1 . Slashing Weapon 1 | . . . 1 . . . . Piercing Weapon . | . . . . . . . . Special Melee Weapon . | . . . . . . . . Unidentified Prototypes 7 | . . 2 2 2 . . 1 Corrupted Parts 2 | . . . . 1 1 . . System Corruption 10 | . . . . 5 5 . . Parts Lost 28 | . 1 3 4 3 10 . 7 Power 6 | . . 1 1 2 1 . 1 Propulsion 11 | . 1 1 2 . 4 . 3 Utility 8 | . . 1 . 1 3 . 3 Weapon 3 | . . . 1 . 2 . . Highest Loss Streak 10 | . 1 3 2 3 10 . 7 To Critical Strikes . | . . . . . . . . Average Slot Usage (%) 89 | . 100 100 99 87 72 87 85 Engine 4 | . 14 11 2 3 . 2 6 Core 2 | . . . 6 5 . . . Wheel 11 | . 28 33 15 . . . . Flight 13 | . . . 10 24 15 30 27 Device 10 | . 14 16 13 11 6 7 5 Storage 8 | . 14 11 9 7 7 7 6 Processor 11 | . . 5 13 17 15 15 15 Protection 4 | . . . 9 . 5 7 6 Ballistic Gun 8 | . 28 22 8 . . . . Impact Weapon 8 | . . . 4 14 14 15 15 Slashing Weapon 1 | . . . 4 . . . . Naked Turns . | . . . . . . . . Heaviest Build 30 | 14 19 20 30 22 19 29 29 Greatest Support 30 | 26 20 30 30 24 23 20 20 Greatest Overweight (x) 2 | . 1 . 1 . 2 1 1 Average Overweight (x) . | . . . . . . . 1 Largest Inventory Capacity 10 | 8 10 10 10 10 8 8 8 Average Capacity 8 | 7 9 10 9 8 8 8 7 Most Carried 10 | 8 10 10 10 10 7 7 8 Average Carried 6 | 5 9 9 8 7 4 6 6 Final Capacity 10 | 8 10 10 10 8 8 8 5 Final Carried 10 | 8 9 10 10 7 6 6 5 Class Distribution -------------------- 44% | Mutant 36% | Scavenger-Mutant 15% | Sprinter 3% | Scavenger-Sprinter Dominant Class ---------------- Mutant | -10/Materials Scavenger-Mutant | -9/Materials Scavenger-Mutant | -8/Materials Sprinter | -7/Factory Mutant | -7/Lower Caves Scavenger-Mutant | -7/Lower Caves Scavenger-Mutant | -7/Data Miner Resources | -11 -10 -9 -8 -7 -7 -7 -7 ----------- Run | Scr Mat Mat Mat Fac Low Low Dat Matter Collected 1299 | 371 145 153 322 86 157 65 . Remotely . | . . . . . . . . Salvage Created 1822 | 178 227 209 561 292 273 62 20 Parts 85 | 20 20 13 20 4 5 1 2 Haulers Intercepted 4 | . 1 1 1 1 . . . Recyclers Shooed 1 | . . . 1 . . . . Parts Field Recycled . | . . . . . . . . Retrieved Matter . | . . . . . . . . Parts Self-Destructed 11 | . . . . . 5 6 . Prevented 4 | . . . . . 2 2 . Kills | -11 -10 -9 -8 -7 -7 -7 -7 ------- Run | Scr Mat Mat Mat Fac Low Low Dat Combat Hostiles Destroyed 36 | . 8 3 10 8 6 1 . Melee 15 | . . . 6 6 2 1 . Guns 13 | . 8 3 2 . . . . Classes Destroyed 11 | 2 3 2 2 1 1 . . Worker 3 | . . . 2 1 . . . Tunneler 9 | 7 . . 2 . . . . Hauler 4 | . 1 1 1 1 . . . Recycler 1 | 1 . . . . . . . Watcher 1 | . . 1 . . . . . Swarmer 11 | . 6 . . 4 1 . . Grunt 17 | . 2 2 8 2 3 . . Brawler 1 | . . . . . 1 . . Sentry 3 | . . 1 1 . 1 . . Hunter 2 | . . . 1 . . 1 . Programmer 2 | . . . . 2 . . . Decomposer 1 | . . . . . . 1 . Best Kill Streak 7 | 1 4 3 5 7 5 1 1 Combat Bots Only 6 | . 3 3 5 6 5 1 . Max Kills in Single Turn 1 | 1 1 1 1 1 1 1 1 Gunslinging . | . . . . . . . . Exploded . | . . . . . . . . Melee 1 | . . . 1 1 1 1 . Uniques/NPCs Destroyed 1 | . . . . . . . 1 Data Miner (-7/Data Miner) Combat | -11 -10 -9 -8 -7 -7 -7 -7 -------- Run | Scr Mat Mat Mat Fac Low Low Dat Damage Taken 3552 | . 356 149 784 400 1096 80 687 Core 1039 | . 100 16 212 120 358 . 233 Absorbed by Shields . | . . . . . . . . Core Remaining (%) 79 | 100 60 96 61 . . . . Volleys Fired 91 | 27 30 18 16 . . . . Largest 2 | 2 2 2 2 . . . . Hottest 48 | 40 40 40 48 . . . . Shots Fired 182 | 54 60 36 32 . . . . Gun 182 | 54 60 36 32 . . . . Cannon . | . . . . . . . . Launcher . | . . . . . . . . Special . | . . . . . . . . Kinetic 182 | 54 60 36 32 . . . . Thermal . | . . . . . . . . Explosive . | . . . . . . . . Electromagnetic . | . . . . . . . . Robot Hit Streak 11 | 11 10 8 5 . . . . Robot Miss Streak 3 | 2 3 2 2 . . . . Penetration Max . | . . . . . . . . Secondary Targets 2 | . . 2 . . . . . Max Gunslinging Chain 1 | . . 1 . . . . . Shots Hit Robots 209 | 38 41 25 57 26 19 2 1 Core Hits 57 | 12 15 12 13 4 1 . . Critical Kills 4 | . . . 2 1 1 . . Critical Parts Destroyed 14 | . 1 . 5 3 3 2 . Critical Strikes 18 | . 1 . 7 4 4 2 . Destroy 1 | . 1 . . . . . . Smash 17 | . . . 7 4 4 2 . Melee Attacks 111 | . . . 49 30 25 6 1 Impact 101 | . . . 39 30 25 6 1 Slashing 10 | . . . 10 . . . . Piercing . | . . . . . . . . Sneak Attacks 9 | . . . 5 2 . 1 1 Combat Hostiles 1 | . . . 1 . . . . Follow-up Attacks 10 | . . . 5 2 2 1 . Damage Inflicted 5697 | 420 423 242 2138 1394 826 139 115 Guns 1320 | 420 423 242 235 . . . . Cannons . | . . . . . . . . Explosions . | . . . . . . . . Melee 4377 | . . . 1903 1394 826 139 115 Ramming . | . . . . . . . . Kinetic 1320 | 420 423 242 235 . . . . Thermal . | . . . . . . . . Explosive . | . . . . . . . . Electromagnetic . | . . . . . . . . Impact 4209 | . . . 1735 1394 826 139 115 Slashing 168 | . . . 168 . . . . Piercing . | . . . . . . . . Highest Corruption 16 | . . . . 11 16 16 16 Average Corruption 14 | . . . . 5 15 16 16 Corruption Purged . | . . . . . . . . Corruption Blocked . | . . . . . . . . Effects 53 | . . . . 4 34 12 3 Message Errors 11 | . . . . . 7 3 1 Matter Fused 14 | . . . . 2 6 5 1 Heat Flow Errors 8 | . . . . 1 5 1 1 Energy Discharges 9 | . . . . . 8 1 . Parts Rejected 1 | . . . . . . 1 . Data Loss (minor) 8 | . . . . . 7 1 . Data Loss (major) 2 | . . . . 1 1 . . Overload Shots . | . . . . . . . . Overflow Damage 1552 | . . . 548 481 279 139 105 Projectiles . | . . . . . . . . Explosions . | . . . . . . . . Melee 1552 | . . . 548 481 279 139 105 Knockbacks 24 | . . . 14 7 3 . . Impact 20 | . . . 11 6 3 . . Kinetic . | . . . . . . . . Secondary 4 | . . . 3 1 . . . Self-Inflicted Damage . | . . . . . . . . Shots . | . . . . . . . . Rammed . | . . . . . . . . Targets Rammed . | . . . . . . . . Kicked . | . . . . . . . . Crushed . | . . . . . . . . Highest Temperature 263 | . 18 3 38 178 237 263 165 Average Temperature 58 | . 9 2 14 90 96 145 91 Received Heat Transfer 915 | . 99 60 315 36 405 . . Siege Activations . | . . . . . . . . Robots Corrupted . | . . . . . . . . Combat Hostiles . | . . . . . . . . Parts Fried 12 | . . . 8 1 2 1 . Impact Corruptions 51 | . . . 16 18 10 6 1 Robots Melted . | . . . . . . . . Combat Hostiles . | . . . . . . . . Parts Melted . | . . . . . . . . Heat Transferred . | . . . . . . . . Parts Sabotaged . | . . . . . . . . Parts Stolen . | . . . . . . . . Parts Stripped . | . . . . . . . . Power Chain Reactions . | . . . . . . . . Missiles Intercepted . | . . . . . . . . Alert | -11 -10 -9 -8 -7 -7 -7 -7 ------- Run | Scr Mat Mat Mat Fac Low Low Dat Peak Influence 404 | 40 300 82 247 404 . . . Initial 112 | . 26 42 34 112 . . . Average 105 | 18 158 41 90 237 . . . Maximum Alert Level 2 | . 1 . 1 2 . . . Low Security (%) 84 | 100 58 100 96 56 . . . Level 1 14 | . 41 . 3 36 . . . Level 2 . | . . . . 6 . . . Level 3 . | . . . . . . . . Level 4 . | . . . . . . . . Level 5 . | . . . . . . . . High Security . | . . . . . . . . Max Security . | . . . . . . . . Squads Dispatched 4 | . . . 2 2 . . . Investigation 1 | . . . 1 . . . . Extermination 1 | . . . . 1 . . . Reinforcement 2 | . . . 1 1 . . . Assault . | . . . . . . . . Garrison . | . . . . . . . . Intercept . | . . . . . . . . Searches Triggered . | . . . . . . . . Construction Impeded . | . . . . . . . . Haulers Reinforced 1 | . . . . 1 . . . Active Scanning Responses . | . . . . . . . . Cargo Convoy Interrupts . | . . . . . . . . Stealth | -11 -10 -9 -8 -7 -7 -7 -7 --------- Run | Scr Mat Mat Mat Fac Low Low Dat Distress Signals 2 | . . . 2 . . . . Communications Jammed . | . . . . . . . . Distress Signals . | . . . . . . . . Times Spotted 61 | . 12 4 21 12 7 1 4 Peak Tracking Total 7 | . 4 2 7 6 7 2 4 Tactical Retreats 10 | . 1 . 3 3 2 1 . Traps | -11 -10 -9 -8 -7 -7 -7 -7 ------- Run | Scr Mat Mat Mat Fac Low Low Dat Traps Triggered 1 | . . . . 1 . . . Indirectly . | . . . . . . . . Trap Hack Attempts . | . . . . . . . . Triggered . | . . . . . . . . Disarmed . | . . . . . . . . Reprogrammed 4 | . 4 . . . . . . Reused . | . . . . . . . . Traps Extracted . | . . . . . . . . Installed . | . . . . . . . . Triggered 2 | . . . . . . 2 . Machines | -11 -10 -9 -8 -7 -7 -7 -7 ---------- Run | Scr Mat Mat Mat Fac Low Low Dat Machines Disabled . | . . . . . . . . Max in Single Turn . | . . . . . . . . Machines Sabotaged . | . . . . . . . . Garrisons Compromised . | . . . . . . . . Overloaded Fab Kills . | . . . . . . . . Hacking | -11 -10 -9 -8 -7 -7 -7 -7 --------- Run | Scr Mat Mat Mat Fac Low Low Dat Machines Accessed 21 | . 7 4 4 1 . 1 4 Terminals 13 | . 5 3 4 1 . . . Fabricators . | . . . . . . . . Repair Stations . | . . . . . . . . Recycling Units 2 | . 2 . . . . . . Scanalyzers 1 | . . 1 . . . . . Garrison Access . | . . . . . . . . Total Hacks 76 | . 20 16 8 2 . 1 29 Successful 59 | . 11 11 6 1 . 1 29 Failed 17 | . 9 5 2 1 . . . Catastrophic 1 | . . . . 1 . . . Database Lockouts . | . . . . . . . . Manual 9 | . 4 1 3 1 . . . Terminals 37 | . 16 11 8 2 . . . Fabricators . | . . . . . . . . Repair Stations . | . . . . . . . . Recycling Units 4 | . 4 . . . . . . Scanalyzers 5 | . . 5 . . . . . Garrison Access . | . . . . . . . . Terminal Hacks 48 | . 7 5 5 1 . 1 29 Record 11 | . . . . . . . 11 Part Schematic 10 | . . . . . . . 10 Robot Schematic 5 | . . . . . . . 5 Robot Analysis 1 | . . 1 . . . . . Prototype ID Bank 4 | . . 1 . . . . 3 Open Door 1 | . . . . . . 1 . Branch Access Points 1 | . 1 . . . . . . Emergency Access Points 1 | . . . 1 . . . . Unreport Threat 1 | . . 1 . . . . . Locate Traps 2 | . 1 . 1 . . . . Reprogram Traps 1 | . 1 . . . . . . Dispatch Records 1 | . 1 . . . . . . Maintenance Status 1 | . 1 . . . . . . Security Status 1 | . 1 . . . . . . Patrol Status 1 | . . . 1 . . . . Hauler Manifests 1 | . . 1 . . . . . Zone Layout 5 | . 1 1 2 1 . . . Fabricator Hacks . | . . . . . . . . Repair Station Hacks . | . . . . . . . . Recycling Unit Hacks 3 | . 3 . . . . . . Retrieve Matter 1 | . 1 . . . . . . Retrieve Components 2 | . 2 . . . . . . Scanalyzer 5 | . . 5 . . . . . Insert Component 2 | . . 2 . . . . . Analyze 3 | . . 3 . . . . . Garrison Access Hacks . | . . . . . . . . Unauthorized Hacks 3 | . 1 1 1 . . . . Terminals 3 | . 1 1 1 . . . . Assimilate 1 | . 1 . . . . . . Botnet 2 | . . 1 1 . . . . Fabricators . | . . . . . . . . Repair Stations . | . . . . . . . . Recycling Units . | . . . . . . . . Scanalyzers . | . . . . . . . . Garrison Access . | . . . . . . . . Data Cores Recovered . | . . . . . . . . Used . | . . . . . . . . Hacking Detections 16 | . 7 4 4 1 . . . Full Trace Events 1 | . . 1 . . . . . Feedback Events . | . . . . . . . . Feedback Blocked . | . . . . . . . . Robot Schematics Acquired 5 | . . . . . . . 5 Robots Built . | . . . . . . . . Authchips . | . . . . . . . . Time . | . . . . . . . . Total Robot Build Rating . | . . . . . . . . Part Schematics Acquired 12 | . . 2 . . . . 10 Parts Built . | . . . . . . . . Authchips . | . . . . . . . . Time . | . . . . . . . . Total Part Build Rating . | . . . . . . . . Parts Repaired . | . . . . . . . . Time . | . . . . . . . . Parts Recycled . | . . . . . . . . Recycled Matter . | . . . . . . . . Retrieved Matter . | . . . . . . . . Retrieved Components 9 | . 9 . . . . . . Parts Scanalyzed 2 | . . 2 . . . . . Part Schematics Acquired 2 | . . 2 . . . . . Parts Damaged . | . . . . . . . . Bothacking | -11 -10 -9 -8 -7 -7 -7 -7 ------------ Run | Scr Mat Mat Mat Fac Low Low Dat Used RIF Installer . | . . . . . . . . Robots Hacked . | . . . . . . . . Non-combat . | . . . . . . . . Combat . | . . . . . . . . Robot Hacks Applied . | . . . . . . . . Relay Couplers Released . | . . . . . . . . Fabnet Peak Effective % . | . . . . . . . . Robots Rewired 2 | . . . . . 2 . . Allies Hacked . | . . . . . . . . Hacks Repelled . | . . . . . . . . Allies | -11 -10 -9 -8 -7 -7 -7 -7 -------- Run | Scr Mat Mat Mat Fac Low Low Dat Total Allies 3 | . 1 . . . 2 . . Largest Group 2 | . 1 1 1 . 2 2 . Highest-Rated Group 48 | . 10 10 10 . 48 48 . Highest-Rated Ally 32 | . 10 10 10 . 32 32 . Total Orders . | . . . . . . . . Ally Attacks 5 | . . . . . . 5 . Total Damage 107 | . . . . . . 107 . Kills 1 | . . . . . . 1 . Allies Corrupted . | . . . . . . . . Allies Melted . | . . . . . . . . Intel | -11 -10 -9 -8 -7 -7 -7 -7 ------- Run | Scr Mat Mat Mat Fac Low Low Dat Robot Analysis Total 129 | . . 1 . . . . 128 Derelict Logs Recovered 4 | . . . . . 2 2 . Drone Launches . | . . . . . . . . Drone Recoveries . | . . . . . . . . Exploration | -11 -10 -9 -8 -7 -7 -7 -7 ------------- Run | Scr Mat Mat Mat Fac Low Low Dat Turns Passed 3289 | 346 414 367 660 314 766 326 96 Spaces Moved 2790 | 299 358 332 592 403 419 299 88 Core 11 | 11 . . . . . . . Treads 204 | . . . . . 204 . . Legs . | . . . . . . . . Wheels 1242 | 288 358 332 264 . . . . Hover . | . . . . . . . . Flight 1333 | . . . 328 403 215 299 88 Fastest Speed 26 | 50 80 80 29 26 26 26 100 Average Speed 75 | 81 80 80 53 28 119 97 102 Slowest Speed 185 | 90 95 80 102 30 185 109 104 Overloaded Moves . | . . . . . . . . Propulsion Burnouts . | . . . . . . . . Robots Hopped 1 | . . . 1 . . . . Cave-ins Triggered . | . . . . . . . . Exploration Rate (%) 40 | 8 53 24 40 7 68 44 77 Regions Visited 7 Branch Regions 3 Pre-discovered Areas 31 | . . . . . 1 . 30 Known Exits Taken 5 | . . 1 1 1 1 1 . Unknown Exits Taken 2 | 1 1 . . . . . . Scrap Searched 6 | . . . . . 3 3 . Spaces Dug . | . . . . . . . . Terrain Destroyed . | . . . . . . . . Melee . | . . . . . . . . Projectile . | . . . . . . . . AOE . | . . . . . . . . Terrain Rammed . | . . . . . . . . Walls Destroyed . | . . . . . . . . Machines Disabled . | . . . . . . . . Actions | -11 -10 -9 -8 -7 -7 -7 -7 --------- Run | Scr Mat Mat Mat Fac Low Low Dat Total 3638 | 354 433 402 835 553 643 326 92 Wait 442 | 2 32 24 117 80 169 18 . Move 2781 | 298 357 331 589 402 418 298 88 Hop 1 | . . . 1 . . . . Pick Up 86 | 17 7 13 27 9 8 3 2 Fast Attach . | . . . . . . . . Attach 40 | 7 1 5 10 5 9 2 1 Detach . | . . . . . . . . Swap 26 | 1 1 4 15 3 2 . . Drop 45 | 2 5 7 21 8 1 1 . Fire 91 | 27 30 18 16 . . . . Melee 94 | . . . 39 28 22 4 1 Ram . | . . . . . . . . Kick . | . . . . . . . . Crush . | . . . . . . . . Escape Stasis 18 | . . . . 18 . . . Rewire 14 | . . . . . 14 . . Trap . | . . . . . . . . Miscellaneous . | . . . . . . . . Route ------- -11/Scrapyard -10/Materials (discovered 3 exits: *Mat / Min x2) -9/Materials -8/Materials -7/Factory (discovered 2 exits: *Fac / *Low) -7/Lower Caves -7/Lower Caves -7/Data Miner (discovered 1 exit: *Pro) History --------- Turn | Location | Event 9 | -11/Scrapyard | Discovered new exit (range 16) 347 | -11/Scrapyard | Entered Materials 348 | -10/Materials | Build established: Mutant 664 | -10/Materials | Discovered new exit (range 14) 727 | -10/Materials | Identified exit to Mines 761 | -10/Materials | Entered another Materials area 761 | -9/Materials | Accompanied by 1 ally 761 | -9/Materials | Evolved 2 slots: Propulsion x1, Utility x1 986 | -9/Materials | Lost 3 parts (1p1n1u) 1093 | -9/Materials | Build established: Scavenger-Mutant 1117 | -9/Materials | Discovered new exit (range 15) 1127 | -9/Materials | Identified exit to Materials 1128 | -9/Materials | Entered another Materials area 1128 | -8/Materials | Accompanied by 1 ally 1128 | -8/Materials | Evolved 2 slots: Utility x2 1756 | -8/Materials | Discovered new exit (range 8) 1788 | -8/Materials | Identified exit to Factory 1788 | -8/Materials | Entered Factory 1788 | -7/Factory | Evolved 2 slots: Power x1, Propulsion x1 1805 | -7/Factory | Discovered new exit (range 6) 1807 | -7/Factory | Identified exit to Factory 2004 | -7/Factory | Lost 3 parts (2p1u) 2092 | -7/Factory | Discovered new exit (range 7) 2095 | -7/Factory | Identified exit to Lower Caves 2097 | -7/Factory | Found Prototype Launcher 2098 | -7/Factory | Identified Rocket Array 2099 | -7/Factory | System corruption reached 10% 2102 | -7/Factory | Entered Lower Caves 2120 | -7/Lower Caves | Attracted the attention of an 0b10 outpost 2164 | -7/Lower Caves | Core integrity fell below 50% 2208 | -7/Lower Caves | Lost 10 parts (1p4n3u2w) 2452 | -7/Lower Caves | Build established: Mutant 2630 | -7/Lower Caves | Encountered a Warlord checkpoint 2853 | -7/Lower Caves | Discovered new exit (range 8) 2855 | -7/Lower Caves | Identified exit to Lower Caves 2868 | -7/Lower Caves | Entered another Lower Caves area 2868 | -7/Lower Caves | Accompanied by 2 allies 3035 | -7/Lower Caves | Encountered a Warlord checkpoint 3043 | -7/Lower Caves | Learned Factory emergency access door positions 3167 | -7/Lower Caves | Discovered new exit (range 9) 3176 | -7/Lower Caves | Identified exit to Data Miner 3183 | -7/Lower Caves | Learned 4 Factory zone layouts 3194 | -7/Lower Caves | Entered Data Miner 3194 | -7/Data Miner | Discovered new exit (range 6) 3199 | -7/Data Miner | Identified exit to Proximity Caves 3215 | -7/Data Miner | Met Data Miner 3233 | -7/Data Miner | Learned location of Section 7 (-2) 3233 | -7/Data Miner | Acquired the access code to Warlord's prototype stash 3252 | -7/Data Miner | Received God Mode back door access code from Data Miner 3260 | -7/Data Miner | Destroyed Data Miner 3263 | -7/Data Miner | Interfaced with the Data Conduit 3265 | -7/Data Miner | Found Prototype Hackware 3267 | -7/Data Miner | Found Prototype Hackware 3280 | -7/Data Miner | Identified Deep Network Scanner 3287 | -7/Data Miner | Core integrity fell below 20% 3290 | -7/Data Miner | Destroyed by Enhanced Grunt with Neutron Cannon Last Messages --------------- 03260_ Destroyed Prototype Hackware. 03260_ Data Miner system corrupted by crushing effect. 03260_ Data Miner destroyed. 03263_ Interfacing with system... Downloaded 128 analysis records. Downloaded 718 prototype IDs. Downloaded central machine database. Downloaded 29 destinations. Downloaded encryption format records. Connection remotely terminated. [Achievement: Unlimited Data] 03265_ Acquired Prototype Hackware. 03273_ Cesium-ion Thruster destroyed. 03278_ System corrupted: Matter fused (-7). 03278_ Imp. Sensor Array destroyed. 03280_ Identified Deep Network Scanner. 03281_ Imp. Medium Armor Plating destroyed. 03282_ Sml. Storage Unit destroyed. 03285_ Cesium-ion Thruster destroyed. 03286_ Imp. Deuterium Engine destroyed. Map ----- +----------------------------------------------------+ | | | | | | | | | | | | | | | | | | | | | | | | | | | | | | | | | | | ?????????????????????????????????????????????? | | ?????????????????????????????????????????????? | | ?????????????????????????????????????????????? | | ?????????????????????????????????????????????? | | ?????????????????????????????????####????????? | | ??###############????#####?#???### #????????? | | ?"""""""""""""""###### # # #?### #????????? | | """"""""" """"""""# # # # ## > ##????????? | | """"""""" @ ######???? | | """""" g #???? | | """""" g g #???? | | """""% g #???? | | """""" ##???? | | """""" !! "" """"""""""""#####????? | | """"""" """###############????????? | | """"""" """""###??????????????????????? | | ?"""""""" "#####????????????????????????? | | ??######""" "#????????????????????????????? | | ???????#"### "#????????????????????????????? | | ???????#"### "#????????????????????????????? | | ???????#"## "#????????????????????????????? | | ???????#?## "#????????????????????????????? | | ?????????# "#????????????????????????????? | | ?????????### "#????????????????????????????? | | ???????????# "##???????????????????????????? | | ??????????## ""#???????????????????????????? | | ???????#?## ""#???????????????????????????? | | ??????##"#"X ""#???????????????????????????? | | ??????""""" "####????????????????????????? | | ??????""""" X"""""????????????????????????? | | ??????##"#"X "##"#????????????????????????? | | ???????#?## X""""#????????????????????????? | | ??????????## "##"#????????????????????????? | +----------------------------------------------------+ Best States ------------- Heat Dissipation 34 Energy Generation 23 Energy Capacity 290 Matter Stores 300 Matter Capacity 300 Sight Range 16 Robot Scan Range 15 Terrain Scan Density 10 Additional Mass Support 9 Armor Coverage 300 Evasion (%) 64 Melee Accuracy 6 Target Analysis 5 Recoil Reduction 1 Offensive Hacking 25 Item Schematics ----------------- Imp. Flight Unit | -9/Materials | Scanalyzed Hrd. Light Armor Plating | -9/Materials | Scanalyzed Combat Drone Bay | -7/Data Miner | Free Lgt. Regenerative Plating | -7/Data Miner | Free Biomechanical Wings | -7/Data Miner | Free Thermal Defense Suite | -7/Data Miner | Free Cld. Plasma Cannon | -7/Data Miner | Free Antigrav System | -7/Data Miner | Free Adv. Cooling System | -7/Data Miner | Free Wave Gun | -7/Data Miner | Free Imp. Plasma Cutter | -7/Data Miner | Free Lrn. Terrain Scanner | -7/Data Miner | Free Robot Schematics ------------------ B-48 Gladiator | -7/Data Miner | Free H-55 Commando | -7/Data Miner | Free H-66 Slayer | -7/Data Miner | Free S-27 Virus | -7/Data Miner | Free M-22 Extractor | -7/Data Miner | Free Fabricated ------------ Nothing Alien Tech Used ----------------- None Achievements -------------- Unlimited Data Challenges ------------ None Game ------ Seed GuidanceDrainedProtomatter Manual? 0 Play Time 01:05:30 Cumulative 63.9 hours Start 2022.09.15 @ 18:30:55 End 2022.09.15 @ 19:46:12 Sessions 1 Manual Loads 0 Difficulty Rogue Special Mode None Game No. 70 Rogue 70 Adventurer 0 Explorer 0 Win Type - Total 0 Types 0/0/0/0/0/0/0/0/0 Lore% 52 Gallery% 41 Achievement% 35 Wizard Run 0 Options --------- ASCII 0 Keyboard 0 Movement Numpad Keybinds 0 Fullscreen 2 Font 18/SmallcapsGlow Map View 76x50 Tactical HUD 1 Map Filters NONE Filters NONE Steam 1 RUN: 118dcd61-28b9-48fd-bf12-53d4c160ad64